fUSD/lending_fUSD_20250923
["ID","MTS","AMOUNT","RATE_DAILY","PERIOD"]
[387208738,1758647447601,-255.830562,0.00020889,2]
[387208739,1758647447610,-255.830562,0.00020889,2]
[387208740,1758647447621,-151.0,0.00020889,2]
[387208741,1758647447631,-151.0,0.00020914,2]
[387208742,1758647447641,-151.0,0.00020914,2]
[387208743,1758647447650,-151.0,0.00020914,2]
[387208744,1758647447659,-151.0,0.00020914,2]
[387208745,1758647447669,-151.0,0.00020914,2]
[387208746,1758647447679,-290.758337,0.00020914,2]
[387208747,1758647447688,-151.0,0.00020914,2]
[387208748,1758647447698,-290.758337,0.00020914,2]
[387208749,1758647447707,-151.0,0.00020914,2]
[387208750,1758647447717,-151.0,0.00020914,2]
[387208751,1758647447727,-151.0,0.00020914,2]
[387208752,1758647447737,-290.758337,0.00020914,2]
[387208753,1758647447746,-151.0,0.00020914,2]
[387208754,1758647447756,-151.0,0.00020914,2]
[387208755,1758647447765,-290.758337,0.00020914,2]
[387208756,1758647447774,-297.379772,0.00020914,2]
[387208757,1758647447784,-183.002625,0.00020914,2]
[387208758,1758647447793,-151.0,0.00020914,2]
[387208759,1758647447802,-151.0,0.00020914,2]
[387208760,1758647447813,-151.0,0.00020914,2]
[387208761,1758647447822,-151.0,0.00020914,2]
[387208762,1758647447831,-151.0,0.00020914,2]
[387208763,1758647447840,-151.0,0.00020914,2]
[387208764,1758647447850,-6840.53102666,0.00020934,2]
[387208765,1758647447859,-3065.0,0.0002094,2]
[387208766,1758647447871,-469.14,0.0002094,2]
[387208767,1758647447881,-4523.0,0.0002094,2]
[387208768,1758647447891,-4177.0,0.0002094,2]
[387208769,1758647447902,-18894.0,0.0002094,2]
[387208770,1758647447912,-539.02,0.00020942,2]
[387208771,1758647447922,-692.0,0.00020956,2]
[387208772,1758647447931,-168.45,0.00020964,2]
[387208773,1758647447941,-1000.0,0.00020986,2]
[387208774,1758647447951,-2800.03791651,0.00021,2]
[387208775,1758647447960,-3402.8941394,0.00021,3]
[387208776,1758647447970,-200.0,0.00021073,2]
[387208777,1758647447979,-250.0,0.00021073,2]
[387208778,1758647447989,-208.216,0.00021073,2]
[387208779,1758647447999,-160.954,0.00021073,2]
[387208780,1758647448010,-158.0,0.00021073,2]
[387208781,1758647448019,-214.403,0.00021073,2]
[387208782,1758647448028,-151.0,0.00021073,2]
[387208783,1758647448038,-3394.0,0.00021073,2]
[387208784,1758647448047,-906.281,0.00021073,2]
[387208785,1758647448056,-1262.0,0.00021073,2]
[387208786,1758647448067,-2042.0,0.00021073,2]
[387208787,1758647448076,-151.0,0.00021073,2]
[387208788,1758647448085,-151.0,0.00021073,2]
[387208789,1758647448094,-1305.0,0.00021073,2]
[387208790,1758647448103,-572.9,0.00021073,2]
[387208791,1758647448113,-1582.0,0.00021073,2]
[387208792,1758647448122,-606.258,0.00021073,2]
[387208793,1758647448131,-151.0,0.00021073,2]
[387208794,1758647448140,-151.0,0.00021073,2]
[387208795,1758647448149,-151.0,0.00021073,2]
[387208796,1758647448158,-814.0,0.00021073,2]
[387208797,1758647448167,-151.0,0.00021073,2]
[387208798,1758647448176,-151.0,0.00021073,2]
[387208799,1758647448186,-613.29788641,0.00021087,2]
[387208800,1758647448195,-1000.0,0.00021095,2]
[387208801,1758647448205,-500.0,0.00021096,2]
[387208802,1758647448214,-500.0,0.00021096,2]
[387208803,1758647448223,-202.92628102,0.00021096,2]
[387208804,1758647448232,-198.00694832,0.00021096,2]
[387208805,1758647448242,-500.0,0.00021096,2]
[387208806,1758647448251,-500.0,0.00021096,2]
[387208807,1758647448260,-563.56249755,0.00021096,2]
[387208808,1758647448270,-150.0,0.00021096,2]
[387208809,1758647448282,-447.0,0.00021096,2]
[387208810,1758647448297,-500.0,0.00021096,2]
[387208811,1758647448306,-422.0,0.00021096,2]
[387208812,1758647448316,-500.0,0.00021096,2]
[387208813,1758647448326,-500.0,0.00021096,2]
[387208814,1758647448335,-1516.0,0.00021096,2]
[387208815,1758647448345,-500.0,0.00021096,2]
[387208816,1758647448355,-603.84985297,0.00021096,2]
[387208817,1758647448364,-287.01275339,0.00021096,2]
[387208818,1758647448375,-1000.0,0.00021138,2]
[387208819,1758647448385,-1000.0,0.00021138,2]
[387208820,1758647448394,-516.64379166,0.00021193,2]
[387208821,1758647448403,-2556.0,0.000212,3]
[387208822,1758647448413,-151.13318322,0.00021221,2]
[387208823,1758647448422,-151.0,0.00021221,2]
[387208824,1758647448431,-248.71531821,0.00021221,2]
[387208825,1758647448440,-8565.75555911,0.00021221,2]
[387208826,1758647448449,-151.0,0.00021221,2]
[387208827,1758647448458,-646.65982734,0.00021221,2]
[387208828,1758647448468,-500.0,0.00021221,2]
[387208829,1758647448477,-500.0,0.00021221,2]
[387208830,1758647448487,-419.6999308,0.00021221,2]
[387208831,1758647448497,-160.0,0.00021221,2]
[387208832,1758647448506,-500.0,0.00021221,2]
[387208833,1758647448516,-500.0,0.00021221,2]
[387208834,1758647448525,-500.0,0.00021221,2]
[387208835,1758647448534,-500.0,0.00021221,2]
[387208836,1758647448544,-151.0,0.00021221,2]
[387208837,1758647448554,-500.0,0.00021221,2]
[387208838,1758647448564,-581.90943614,0.00021221,2]
[387208839,1758647448575,-322.6107,0.00021221,2]
[387208840,1758647448587,-200.0,0.00021221,2]
[387208841,1758647448598,-200.0,0.00021221,2]
[387208842,1758647448608,-1000.0,0.00021248,2]
[387208843,1758647448620,-536.27510549,0.00021248,2]
[387208844,1758647448633,-500.0,0.00021248,2]
[387208845,1758647448644,-236.5936314,0.00021248,2]
[387208846,1758647448654,-8882.6885148,0.00021276,2]
[387208847,1758647448664,-500.0,0.00021285,2]
[387208848,1758647448675,-262.64241626,0.00021299,2]
[387208849,1758647448685,-6537.43308675,0.00021331,2]
[387208850,1758647448694,-420.0,0.00021349,2]
[387208851,1758647448704,-420.0,0.00021349,2]
[387208852,1758647448714,-500.0,0.0002137,2]
[387208853,1758647448724,-500.0,0.0002137,2]
[387208854,1758647448734,-500.0,0.0002137,2]
[387208855,1758647448744,-189.52975323,0.0002137,2]
[387208856,1758647448754,-250.0,0.0002137,2]
[387208857,1758647449003,-447.0,0.0002137,2]
[387208858,1758647449013,-500.0,0.0002137,2]
[387208859,1758647449022,-422.0,0.0002137,2]
[387208860,1758647449032,-500.0,0.0002137,2]
[387208861,1758647449042,-500.0,0.0002137,2]
[387208862,1758647449051,-1516.0,0.0002137,2]
[387208863,1758647449062,-500.0,0.0002137,2]
[387208864,1758647449072,-200.0,0.0002143,2]
[387208865,1758647449081,-1680.0,0.00021451,2]
[387208866,1758647449091,-6840.53102666,0.00021452,2]
[387208867,1758647449100,-175.65,0.00021586,2]
[387208868,1758647449109,-5513.0,0.000216,5]
[387208869,1758647449119,-206.74,0.00021604,4]
[387208870,1758647449128,-1000.0,0.00021643,2]
[387208871,1758647449137,-500.0,0.00021644,2]
[387208872,1758647449146,-500.0,0.00021644,2]
[387208873,1758647449155,-500.0,0.00021644,2]
[387208874,1758647449164,-447.0,0.00021644,2]
[387208875,1758647449174,-418.33619278,0.00021644,2]
[387208876,1758647449184,-422.0,0.00021644,2]
[387208877,1758647449193,-500.0,0.00021644,2]
[387208878,1758647449202,-500.0,0.00021644,2]
[387208879,1758647449212,-1516.0,0.00021644,2]
[387208880,1758647449223,-500.0,0.00021644,2]
[387208881,1758647449233,-1000.0,0.00021686,2]
[387208882,1758647449243,-1000.0,0.00021686,2]
[387208883,1758647449253,-75797.70434512,0.0002173,2]
[387208884,1758647449263,-151.0,0.0002173,2]
[387208885,1758647449272,-151.0,0.0002173,2]
[387208886,1758647449285,-151.0,0.0002173,2]
[387208887,1758647449295,-151.0,0.0002173,2]
[387208888,1758647449304,-151.0,0.0002173,2]
[387208889,1758647449316,-290.758337,0.0002173,2]
[387208890,1758647449327,-151.0,0.0002173,2]
[387208891,1758647449336,-290.758337,0.0002173,2]
[387208892,1758647449346,-151.0,0.0002173,2]
[387208893,1758647449356,-151.0,0.0002173,2]
[387208894,1758647449368,-290.758337,0.0002173,2]
[387208895,1758647449378,-151.0,0.0002173,2]
[387208896,1758647449387,-151.0,0.0002173,2]
[387208897,1758647449397,-198.556172,0.0002173,2]
[387208898,1758647449407,-290.758337,0.0002173,2]
[387208899,1758647449416,-151.0,0.0002173,2]
[387208900,1758647449426,-151.0,0.0002173,2]
[387208901,1758647449435,-256.158929,0.0002173,2]
[387208902,1758647449445,-151.0,0.0002173,2]
[387208903,1758647449455,-151.0,0.0002173,2]
[387208904,1758647449464,-259.356248,0.0002173,2]
[387208905,1758647449474,-337.324498,0.0002173,2]
[387208906,1758647449484,-337.324498,0.0002173,2]
[387208907,1758647449494,-337.324498,0.0002173,2]
[387208908,1758647449503,-337.324498,0.0002173,2]
[387208909,1758647449513,-151.0,0.0002173,2]
[387208910,1758647449523,-151.0,0.0002173,2]
[387208911,1758647449532,-167.573385,0.0002173,2]
[387208912,1758647449542,-151.0,0.0002173,2]
[387208913,1758647449551,-348.938622,0.0002173,2]
[387208914,1758647449561,-348.938622,0.0002173,2]
[387208915,1758647449571,-348.938622,0.0002173,2]
[387208916,1758647449581,-348.938622,0.0002173,2]
[387208917,1758647449591,-151.0,0.0002173,2]
[387208918,1758647449600,-151.0,0.0002173,2]
[387208919,1758647449609,-152.740742,0.0002173,2]
[387208920,1758647449619,-151.0,0.0002173,2]
[387208921,1758647449628,-151.0,0.0002173,2]
[387208922,1758647449637,-255.830562,0.0002173,2]
[387208923,1758647449647,-255.830562,0.0002173,2]
[387208924,1758647449656,-255.830562,0.0002173,2]
[387208925,1758647449668,-255.830562,0.0002173,2]
[387208926,1758647449677,-151.0,0.0002173,2]
[387208927,1758647449687,-151.0,0.0002173,2]
[387208928,1758647449697,-193.495586,0.0002173,2]
[387208929,1758647449706,-193.495586,0.0002173,2]
[387208930,1758647449715,-151.0,0.0002173,2]
[387208931,1758647449725,-193.495586,0.0002173,2]
[387208932,1758647449734,-193.495586,0.0002173,2]
[387208933,1758647449743,-661.038588,0.0002173,2]
[387208934,1758647449752,-151.0,0.0002173,2]
[387208935,1758647449761,-151.0,0.0002173,2]
[387208936,1758647449771,-661.038588,0.0002173,2]
[387208937,1758647449779,-661.038588,0.0002173,2]
[387208938,1758647449789,-661.038588,0.0002173,2]
[387208939,1758647449802,-268.02519,0.0002173,2]
[387208940,1758647449812,-268.02519,0.0002173,2]
[387208941,1758647449821,-268.02519,0.0002173,2]
[387208942,1758647449831,-155.53621,0.0002173,2]
[387208943,1758647449841,-268.02519,0.0002173,2]
[387208944,1758647449850,-155.53621,0.0002173,2]
[387208945,1758647449859,-155.53621,0.0002173,2]
[387208946,1758647449869,-155.53621,0.0002173,2]
[387208947,1758647449879,-151.0,0.0002173,2]
[387208948,1758647449888,-151.0,0.0002173,2]
[387208949,1758647449899,-155.540736,0.0002173,2]
[387208950,1758647449909,-151.0,0.0002173,2]
[387208951,1758647449919,-151.0,0.0002173,2]
[387208952,1758647449929,-151.0,0.0002173,2]
[387208953,1758647449938,-151.0,0.0002173,2]
[387208954,1758647449948,-151.0,0.0002173,2]
[387208955,1758647449957,-151.0,0.0002173,2]
[387208956,1758647449967,-151.0,0.0002173,2]
[387208957,1758647449976,-151.0,0.0002173,2]
[387208958,1758647449985,-151.0,0.0002173,2]
[387208959,1758647449994,-151.0,0.0002173,2]
[387208960,1758647450005,-1392.33584,0.0002173,2]
[387208961,1758647450016,-1392.33584,0.0002173,2]
[387208962,1758647450026,-1392.33584,0.0002173,2]
[387208963,1758647450036,-1392.33584,0.0002173,2]
[387208964,1758647450046,-151.0,0.0002173,2]
[387208965,1758647450055,-151.0,0.0002173,2]
[387208966,1758647450066,-151.0,0.0002173,2]
[387208967,1758647450075,-891.488623,0.0002173,2]
[387208968,1758647450085,-891.488623,0.0002173,2]
[387208969,1758647450094,-891.488623,0.0002173,2]
[387208970,1758647450104,-891.488623,0.0002173,2]
[387208971,1758647450113,-151.0,0.0002173,2]
[387208972,1758647450123,-151.0,0.0002173,2]
[387208973,1758647450132,-151.0,0.0002173,2]
[387208974,1758647450141,-169.093643,0.0002173,2]
[387208975,1758647450151,-169.093643,0.0002173,2]
[387208976,1758647450160,-169.093643,0.0002173,2]
[387208977,1758647450170,-169.093643,0.0002173,2]
[387208978,1758647450179,-159.974056,0.0002173,2]
[387208979,1758647450190,-159.974056,0.0002173,2]
[387208980,1758647450200,-159.974056,0.0002173,2]
[387208981,1758647450212,-151.0,0.0002173,2]
[387208982,1758647450222,-151.0,0.0002173,2]
[387208983,1758647450232,-159.974056,0.0002173,2]
[387208984,1758647450246,-151.0,0.0002173,2]
[387208985,1758647450257,-151.0,0.0002173,2]
[387208986,1758647450268,-151.0,0.0002173,2]
[387208987,1758647450281,-232.08,0.0002176,2]
[387208988,1758647450299,-151.0,0.00021769,2]
[387208989,1758647450309,-151.0,0.00021769,2]
[387208990,1758647450318,-1000.0,0.00021773,2]
[387208991,1758647450328,-150.0,0.00021778,2]
[387208992,1758647450338,-472.08794461,0.00021796,2]
[387208993,1758647450348,-539.02,0.00021894,2]
[387208994,1758647450358,-1000.0,0.00021899,2]
[387208995,1758647450371,-2500.0,0.000219,7]
[387208996,1758647450383,-12398.4434322,0.000219,2]
[387208997,1758647451111,-330.57600003,0.000219,2]
[387208998,1758647452546,-205.32728776,0.00019599,2]
[387208999,1758647452556,-1234.22380152,0.000198,2]
[387209000,1758647452643,-4020.17124848,0.000198,2]
[387209001,1758647452653,-1608.46001515,0.000199,2]
[387209002,1758647453683,-3645.93504485,0.000199,2]
[387209003,1758647453694,-151.0,0.0002,2]
[387209004,1758647453704,-151.0,0.0002,2]
[387209005,1758647453714,-151.0,0.0002,2]
[387209006,1758647453723,-151.0,0.0002,2]
[387209007,1758647453733,-151.0,0.0002,2]
[387209008,1758647453742,-202.276597,0.0002,2]
[387209009,1758647453753,-151.0,0.0002,2]
[387209010,1758647453762,-202.276597,0.0002,2]
[387209011,1758647453778,-219.301095,0.0002,2]
[387209012,1758647453800,-151.0,0.0002,2]
[387209013,1758647453811,-151.0,0.0002,2]
[387209014,1758647453822,-202.276597,0.0002,2]
[387209015,1758647453832,-202.276597,0.0002,2]
[387209016,1758647453841,-202.276597,0.0002,2]
[387209017,1758647453851,-202.276597,0.0002,2]
[387209018,1758647453861,-5254.39506,0.0002015,2]
[387209019,1758647453870,-5254.39506,0.000204,2]
[387209020,1758647453880,-5254.39506,0.0002065,2]
[387209021,1758647453890,-202.276597,0.000207,2]
[387209022,1758647453900,-151.0,0.000207,2]
[387209023,1758647453910,-151.0,0.000207,2]
[387209024,1758647453920,-151.0,0.000207,2]
[387209025,1758647453929,-202.276597,0.000207,2]
[387209026,1758647453938,-151.0,0.000207,2]
[387209027,1758647453948,-202.276597,0.000207,2]
[387209028,1758647453957,-202.276597,0.000207,2]
[387209029,1758647453967,-426.78811015,0.000209,2]
[387209030,1758647453994,-4539.68186267,0.000209,2]
[387209031,1758647454037,-287.92508718,0.000209,2]
[387209032,1758647454047,-202.276597,0.0002173,2]
[387209033,1758647454057,-151.0,0.0002173,2]
[387209034,1758647454068,-151.0,0.0002173,2]
[387209035,1758647454078,-151.0,0.0002173,2]
[387209036,1758647454088,-202.276597,0.0002173,2]
[387209037,1758647454098,-202.276597,0.0002173,2]
[387209038,1758647454109,-202.276597,0.0002173,2]
[387209039,1758647454119,-541.51294537,0.000219,2]
[387209040,1758648324018,598.76747623,0.00019,5]
[387209043,1758648352581,93.0,0.000184,2]
[387209044,1758648352614,140.0,0.000184,2]
[387209045,1758648387367,1957.0,0.000184,3]
[387209046,1758648427787,194.42,0.00021945,30]
[387209048,1758648465481,-5513.0,0.000186,5]
[387209049,1758648465511,-620.280385,0.00018705,2]
[387209050,1758648465540,-164.63957416,0.0001883,2]
[387209051,1758648465571,-1000.0,0.0001893,2]
[387209052,1758648465600,-250.0,0.00018957,2]
[387209053,1758648465629,-293.0,0.00018982,2]
[387209054,1758648465654,-981.0,0.00018982,2]
[387209055,1758648465664,-500.0,0.00018983,2]
[387209056,1758648465673,-442.22563526,0.00018983,2]
[387209057,1758648465683,-500.0,0.00018983,2]
[387209058,1758648465693,-500.0,0.00018983,2]
[387209059,1758648465702,-500.0,0.00018983,2]
[387209060,1758648465711,-500.0,0.00018983,2]
[387209061,1758648465721,-500.0,0.00018983,2]
[387209062,1758648465732,-500.0,0.00018983,2]
[387209063,1758648465741,-175.8007188,0.00018983,2]
[387209064,1758648465751,-413.97364594,0.00018983,2]
[387209065,1758648465774,-86.02635406,0.00018983,2]
[387209066,1758648465784,-500.0,0.00018983,2]
[387209067,1758648465793,-34.25403094,0.00018983,2]
[387209068,1758648465805,-164.63957416,0.00018983,2]
[387209069,1758648465829,-301.1063949,0.00018983,2]
[387209070,1758648465838,-500.0,0.00018983,2]
[387209071,1758648465848,-198.8936051,0.00018983,2]
[387209072,1758648465859,-250.0,0.00018983,2]
[387209073,1758648465881,-51.1063949,0.00018983,2]
[387209074,1758648465891,-241.8936051,0.00018983,2]
[387209075,1758648465904,-92.40087076,0.00018983,2]
[387209083,1758648518077,820.49126729,0.0001421,7]
[387209087,1758648525145,13423.55059624,0.0001,2]
[387209088,1758648525350,4481.24943847,0.00015,2]
[387209100,1758648632144,-184.376542,0.00018889,2]
[387209101,1758648632160,-712.76,0.00018983,2]
[387209102,1758648632169,-1000.0,0.00018984,2]
[387209103,1758648632179,-1200.0,0.00018994,2]
[387209104,1758648632188,-300.0,0.00018994,2]
[387209105,1758648632198,-18234.01,0.00018996,2]
[387209106,1758648632207,-610.0,0.00019033,2]
[387209107,1758648632216,-200.0,0.00019042,2]
[387209108,1758648632225,-168.23,0.00019098,2]
[387209109,1758648632234,-307.07,0.00019153,2]
[387209110,1758648632243,-228.0,0.0001958,2]
[387209111,1758648632253,-1000.0,0.0001962,2]
[387209112,1758648632262,-3240.13,0.00019636,2]
[387209113,1758648632271,-1000.0,0.00019693,2]
[387209114,1758648632280,-2270.05908096,0.00019695,2]
[387209115,1758648632289,-500.0,0.00019808,3]
[387209116,1758648632298,-253.72,0.00019891,2]
[387209117,1758648632308,-150.0,0.00019894,7]
[387209118,1758648632317,-306.65,0.00019895,2]
[387209119,1758648632326,-168.0,0.00019917,2]
[387209120,1758648632335,-173.7,0.0001994,2]
[387209121,1758648632344,-211.88536111,0.00019949,2]
[387209122,1758648632354,-215.59629086,0.00019949,2]
[387209123,1758648632363,-500.0,0.00019949,2]
[387209124,1758648632372,-317.1522426,0.00019949,2]
[387209125,1758648632382,-123204.60472345,0.0001995,15]
[387209126,1758648632394,-70207.90703587,0.0001995,15]
[387209127,1758648632407,-1000.0,0.00019998,2]
[387209128,1758648632417,-22241.54414766,0.0002,2]
[387209129,1758648632426,-168.0,0.00020065,2]
[387209130,1758648632436,-168.0,0.00020107,2]
[387209131,1758648632446,-168.0,0.00020125,2]
[387209132,1758648632455,-200.0,0.00020255,2]
[387209133,1758648632464,-200.0,0.00020255,2]
[387209134,1758648632473,-173.7,0.00020257,2]
[387209135,1758648632483,-151.0,0.00020267,2]
[387209136,1758648632492,-500.0,0.00020267,2]
[387209138,1758648632501,-248.71531821,0.00020267,2]
[387209140,1758648632512,-500.0,0.00020267,2]
[387209142,1758648632522,-151.0,0.00020267,2]
[387209144,1758648632531,-160.0,0.00020267,2]
[387209146,1758648632540,-500.0,0.00020267,2]
[387209148,1758648632549,-500.0,0.00020267,2]
[387209151,1758648632559,-151.0,0.00020267,2]
[387209153,1758648632569,-500.0,0.00020267,2]
[387209155,1758648632578,-151.13318322,0.00020267,2]
[387209157,1758648632587,-581.90943614,0.00020267,2]
[387209159,1758648632597,-322.6107,0.00020267,2]
[387209161,1758648632606,-161.28066317,0.00020267,2]
[387209163,1758648632615,-500.0,0.00020267,2]
[387209165,1758648632625,-8565.75555911,0.00020267,2]
[387209167,1758648632634,-500.0,0.00020267,2]
[387209169,1758648632643,-419.6999308,0.00020267,2]
[387209171,1758648632656,-151.0,0.00020267,2]
[387209173,1758648632665,-1000.0,0.00020267,2]
[387209175,1758648632675,-151.0,0.00020267,2]
[387209197,1758648632892,-646.65982734,0.00020267,2]
[387209199,1758648632905,-151.0,0.00020267,2]
[387209201,1758648632916,-151.0,0.00020267,2]
[387209203,1758648632926,-151.0,0.00020267,2]
[387209205,1758648632936,-200.0,0.00020267,2]
[387209207,1758648632946,-200.0,0.00020267,2]
[387209209,1758648632957,-8882.6885148,0.00020322,2]
[387209211,1758648632967,-168.0,0.00020338,2]
[387209213,1758648632977,-154.99,0.00020367,2]
[387209216,1758648632987,-9211.34798985,0.00020377,2]
[387209218,1758648632996,-10876.14828993,0.00020382,2]
[387209220,1758648633006,-1000.0,0.00020392,2]
[387209222,1758648633015,-250.0,0.00020415,2]
[387209223,1758648633024,-234.57,0.00020415,2]
[387209226,1758648633035,-9552.16786547,0.00020432,2]
[387209228,1758648633044,-1000.0,0.00020454,2]
[387209229,1758648633053,-238.50578801,0.0002046,2]
[387209231,1758648633063,-168.0,0.00020464,2]
[387209234,1758648633073,-2370.78262504,0.00020487,2]
[387209236,1758648633082,-168.0,0.00020536,2]
[387209237,1758648633091,-1000.0,0.00020547,2]
[387209239,1758648633101,-168.0,0.00020592,2]
[387209241,1758648633110,-168.0,0.00020594,2]
[387209243,1758648633119,-168.0,0.00020595,2]
[387209245,1758648633128,-1000.0,0.000206,2]
[387209247,1758648633138,-1000.0,0.00020673,2]
[387209249,1758648633147,-1482.67892259,0.0002068,2]
[387209251,1758648633158,-936.0,0.00020682,2]
[387209254,1758648633169,-206.74,0.00020703,2]
[387209255,1758648633178,-420.0,0.00020704,2]
[387209257,1758648633188,-168.0,0.00020708,2]
[387209260,1758648633198,-173.7,0.00020709,2]
[387209261,1758648633208,-233.49324892,0.00020719,2]
[387209263,1758648633217,-1000.0,0.00020726,2]
[387209266,1758648633227,-224.0,0.0002077,2]
[387209268,1758648633237,-250.0,0.00020778,2]
[387209270,1758648633246,-2500.0,0.00020778,2]
[387209272,1758648633256,-2500.0,0.00020778,2]
[387209274,1758648633265,-2500.0,0.00020778,2]
[387209275,1758648633274,-2500.0,0.00020778,2]
[387209278,1758648633284,-168.0,0.00020785,2]
[387209279,1758648633293,-1000.0,0.00020793,2]
[387209282,1758648633303,-168.0,0.00020798,2]
[387209283,1758648633313,-1680.0,0.00020804,2]
[387209285,1758648633322,-168.0,0.00020814,2]
[387209287,1758648633332,-151.0,0.00020815,2]
[387209290,1758648633341,-151.0,0.00020815,2]
[387209292,1758648633351,-151.0,0.00020815,2]
[387209293,1758648633361,-168.0,0.00020834,2]
[387209295,1758648633370,-168.0,0.00020837,2]
[387209298,1758648633380,-168.0,0.00020855,2]
[387209300,1758648633390,-3738.3090703,0.00020863,2]
[387209301,1758648633399,-4009.1910947,0.00020863,2]
[387209304,1758648633411,-4161.2003031,0.00020863,2]
[387209306,1758648633420,-2076.0574962,0.00020863,2]
[387209308,1758648633431,-7167.0392435,0.00020863,2]
[387209310,1758648633440,-500.0,0.00020881,2]
[387209312,1758648633450,-500.0,0.00020881,2]
[387209314,1758648633461,-250.0,0.00020881,2]
[387209316,1758648633470,-168.8589038,0.00020882,2]
[387209318,1758648633479,-150.0,0.00020882,2]
[387209320,1758648633489,-2500.0,0.00020882,2]
[387209322,1758648633498,-306.65,0.0002089,2]
[387209324,1758648633508,-612.65938138,0.00020969,2]
[387209325,1758648633517,-103.9612826,0.00020986,2]
[387209328,1758648633530,-696.0387174,0.00020986,2]
[387209330,1758648633539,-173.7,0.0002099,2]
[387209332,1758648633549,-56.27677727,0.00021,2]
[387209411,1758648634317,-2555.2869974,0.00021,2]
[387209413,1758648634326,-13215.09076464,0.00021,2]
[387209415,1758648634335,-32888.68284107,0.00021,2]
[387209417,1758648634347,-7889.92630872,0.00021,2]
[387209419,1758648634358,-30470.11571627,0.00021,2]
[387209421,1758648634369,-5904.09140023,0.00021,2]
[387209423,1758648634378,-411.64,0.00021025,2]
[387209425,1758648634387,-544.1,0.00021025,2]
[387209427,1758648634397,-544.1,0.00021025,2]
[387209429,1758648634408,-411.64,0.00021025,2]
[387209431,1758648634417,-1000.0,0.00021095,2]
[387209433,1758648634426,-500.0,0.00021096,2]
[387209435,1758648634436,-150.0,0.00021096,2]
[387209437,1758648634444,-500.0,0.00021096,2]
[387209439,1758648634454,-152.1766859,0.00021096,2]
[387209441,1758648634464,-150.0,0.00021096,2]
[387209443,1758648634474,-150.0,0.00021096,2]
[387209444,1758648634483,-500.0,0.00021096,2]
[387209445,1758648634492,-150.0,0.00021096,2]
[387209446,1758648634501,-500.0,0.00021096,2]
[387209447,1758648634510,-150.0,0.00021096,2]
[387209448,1758648634519,-463.0,0.00021096,2]
[387209449,1758648634528,-500.0,0.00021096,2]
[387209450,1758648634537,-150.0,0.00021111,2]
[387209451,1758648634546,-1000.0,0.0002112,2]
[387209452,1758648634555,-1000.0,0.00021145,2]
[387209453,1758648634564,-922.27102938,0.00021148,2]
[387209454,1758648634573,-1478.15644925,0.00021153,2]
[387209456,1758648634582,-150.48,0.00021162,2]
[387209458,1758648634591,-270.10540512,0.00021163,2]
[387209460,1758648634601,-516.64379166,0.00021186,2]
[387209462,1758648634610,-663.42931114,0.00021262,2]
[387209464,1758648634619,-569.0,0.00021263,2]
[387209466,1758648634629,-602.0,0.00021263,2]
[387209468,1758648634638,-1305.0,0.00021263,2]
[387209470,1758648634647,-1582.0,0.00021263,2]
[387209472,1758648634663,-814.0,0.00021263,2]
[387209474,1758648634672,-1179.0,0.00021263,2]